bitfinex-derivatives/quotes_ETHF0:USTF0_20250520
["timestamp","ask_amount","ask_price","bid_price","bid_amount"]
[1747773953769,0.79501,2514.7,2514.6,13.81702668]
[1747773954171,4.12786,2514.7,2514.6,13.81702668]
[1747773954371,3.2078,2515.4,2515.0,0.79491]
[1747773954674,0.79488,2515.1,2514.9,0.79492]
[1747773954877,1.3891,2515.2,2515.1,0.79488]
[1747773955368,3.377055,2515.2,2515.1,0.79488]
[1747773955871,4.171905,2515.2,2515.1,0.79488]
[1747773956175,3.377055,2515.2,2515.1,0.79488]
[1747773956472,0.79483,2515.3,2515.2,0.79485]
[1747773956767,2.782705,2515.3,2515.2,0.79485]
[1747773957973,3.345975,2515.3,2515.0,12.703]
[1747773958179,3.345975,2515.3,2514.8,0.27931325]
[1747773958474,0.79494,2514.9,2514.8,0.27931325]
[1747773958972,1.98819001,2514.9,2514.8,1.07429325]
[1747773959176,1.3581,2515.0,2514.9,0.79495]
[1747773959470,1.98815,2515.0,2514.9,0.79495]
[1747773960071,0.79484,2515.3,2514.7,3.27501]
[1747773960271,0.7948,2515.4,2515.3,0.7948]
[1747773960475,0.7948,2515.4,2515.3,0.79482]
[1747773960672,2.782595,2515.4,2515.3,0.79482]
[1747773961274,3.2078,2516.0,2515.4,0.79479]
[1747773961473,3.2078,2516.0,2515.8,0.79465]
[1747773961664,0.79466,2515.8,2515.7,13.49567]
[1747773961864,5.19528001,2516.0,2515.7,12.701]
[1747773962064,0.79464,2515.9,2515.8,0.79464]
[1747773962277,0.79466,2515.8,2515.7,13.49567]
[1747773962669,2.78214001,2515.8,2515.7,13.49567]
[1747773963672,1.98748001,2515.8,2515.7,13.49567]
[1747773963975,2.78214001,2515.8,2515.7,12.701]
[1747773964378,0.79472,2515.6,2515.5,0.27931325]
[1747773964771,7.782355,2515.6,2515.5,0.27931325]
[1747773964969,2.782355,2515.6,2515.5,0.27931325]
[1747773965175,7.782355,2515.6,2515.5,0.27931325]
[1747773965374,2.782355,2515.6,2515.5,0.27931325]
[1747773965577,2.782355,2515.6,2515.5,0.31797998]
[1747773967182,2.782355,2515.6,2515.5,0.59729323]
[1747773967479,7.782355,2515.6,2515.5,0.59729323]
[1747773968281,7.782355,2515.6,2515.5,0.31797998]
[1747773971579,7.782355,2515.6,2515.5,0.59729323]
[1747773972682,7.782355,2515.6,2515.4,0.37788162]
[1747773972868,1.67056,2515.5,2515.4,0.34799399]
[1747773973271,24.75827501,2515.5,2515.4,0.34799399]
[1747773973677,25.95044501,2515.5,2515.1,13.25773453]
[1747773973878,0.79482,2515.3,2515.2,0.00596433]
[1747773974179,4.00262,2515.3,2515.2,0.00596433]
[1747773974377,5.990495,2515.3,2515.2,0.00596433]
[1747773977678,4.00262,2515.3,2515.2,0.00596433]
[1747773977878,5.990495,2515.3,2515.2,0.00596433]
[1747773978788,0.79488,2515.1,2515.0,8.86e-06]
[1747773979182,0.79498,2514.8,2514.7,3e-07]
[1747773979372,4.00278,2514.8,2514.7,3e-07]
[1747773979577,10.99105,2514.8,2514.7,3e-07]
[1747773979780,7.18355,2514.8,2514.5,0.00596433]
[1747773979982,0.79504,2514.6,2514.5,0.00596433]
[1747773980180,2.783465,2514.6,2514.5,0.00596433]
[1747773980377,4.199065,2514.6,2514.5,0.00596433]
[1747773982385,4.199065,2514.6,2514.5,0.80103433]
[1747773982594,3.2078,2514.8,2514.5,0.00596433]
[1747773982890,3.2078,2514.8,2514.5,13.47200433]
[1747773982891,0.79504,2514.6,2514.5,13.47200433]
[1747773983287,0.79504,2514.6,2514.5,12.67696433]
[1747773983488,2.783465,2514.6,2514.5,0.00596433]
[1747773984289,5.042865,2514.6,2514.5,0.00596433]
[1747773985296,5.042865,2514.6,2514.5,0.32405778]
[1747773986892,0.7952,2514.1,2514.0,0.10568974]
[1747773987094,0.79529,2513.8,2513.2,5.08890191]
[1747773987281,4.00309,2513.8,2513.3,1.372]
[1747773987486,5.99215,2513.8,2513.3,1.372]
[1747773987893,5.99215,2513.8,2513.5,0.00596433]
[1747773988394,0.79536,2513.6,2513.5,0.00596433]
[1747773988796,2.78458,2513.6,2513.5,0.00596433]
[1747773990488,2.78458,2513.6,2513.5,2.19466433]
[1747773991789,2.78458,2513.6,2513.5,0.00596433]
[1747773993700,1.99406433,2514.0,2513.5,20.88876433]
[1747773994000,1.99406433,2514.0,2513.6,2.9937]
[1747773994197,1.99406433,2514.0,2513.7,1.3565]
[1747773994403,0.79529,2513.8,2513.7,1.3565]
[1747773995391,0.79528,2513.9,2513.8,0.79527]
[1747773995593,0.79529,2513.8,2513.7,2.15181]
[1747773996090,0.79527,2513.9,2513.8,0.79527]
[1747773996392,0.00596433,2514.0,2513.9,0.79526]
[1747773996601,0.80120433,2514.0,2513.9,0.79526]
[1747773997195,0.00596433,2514.0,2513.7,1.3565]
[1747773997399,0.79528,2513.9,2513.8,0.79528]
[1747773999798,0.79529,2513.8,2513.7,1.3565]
[1747774001303,0.00596433,2514.0,2513.7,1.3565]
[1747774001502,0.00596433,2514.0,2513.9,0.79526]
[1747774001699,0.00596433,2514.0,2513.9,13.47026]
[1747774001904,0.00596433,2514.0,2513.9,14.85926]
[1747774002198,0.80119433,2514.0,2513.9,14.85926]
[1747774002798,0.80119433,2514.0,2513.9,15.17740004]
[1747774003101,0.00596433,2514.0,2513.9,15.17740004]
[1747774005104,0.80119433,2514.0,2513.9,15.17740004]
[1747774005300,0.00596433,2514.0,2513.9,15.17740004]
[1747774005603,0.80119433,2514.0,2513.9,15.17740004]
[1747774006008,0.00596433,2514.0,2513.9,15.17740004]
[1747774006211,0.80119433,2514.0,2513.9,15.17740004]
[1747774007406,0.00596433,2514.0,2513.9,15.17740004]
[1747774008301,0.80119433,2514.0,2513.9,15.17740004]
[1747774008506,0.00596433,2514.0,2513.9,15.17740004]
[1747774009002,0.00596433,2514.0,2513.9,15.54486717]
[1747774009201,0.0908291,2514.0,2513.9,15.54486717]
[1747774010405,0.0908291,2514.0,2513.9,15.17740004]
[1747774010808,2.8749591,2514.0,2513.9,0.31814004]
[1747774010998,5.1033591,2514.0,2513.9,0.31814004]
[1747774011395,0.0908291,2514.0,2513.9,1.11340004]
[1747774011602,0.0908291,2514.0,2513.9,2.50340004]
[1747774012995,0.0908291,2514.0,2513.9,2.87124239]
[1747774013398,6.0827591,2514.0,2513.9,0.68598239]
[1747774013599,11.0827591,2514.0,2513.9,0.68598239]
[1747774013807,12.6569591,2514.0,2513.9,0.68598239]
[1747774014308,12.6569591,2514.0,2513.9,0.36784235]
[1747774014499,12.6569591,2514.0,2513.8,0.55121467]
[1747774014500,0.79536,2513.6,2513.5,0.00596433]
[1747774014703,4.00316,2513.6,2513.5,0.00596433]
[1747774014906,5.99238,2513.6,2513.5,0.00596433]
[1747774015404,10.99238,2513.6,2513.5,0.00596433]
[1747774015608,1.98858,2513.4,2512.8,0.36750076]
[1747774015804,0.79551,2513.1,2512.8,0.36750076]
[1747774016107,2.08365,2513.0,2512.9,0.79556]
[1747774016306,1.2881,2513.0,2512.8,1.16309076]
[1747774016508,4.073415,2513.0,2512.8,1.16309076]
[1747774016807,3.277835,2513.0,2512.8,1.16309076]
[1747774017009,4.073405,2513.0,2512.9,0.31826332]
[1747774017407,1.2881,2513.0,2512.9,1.11384332]
[1747774018095,2.08365,2513.0,2512.9,1.11384332]
[1747774018301,2.08365,2513.0,2512.9,0.31826332]
[1747774019211,4.073345,2513.0,2512.9,0.31826332]
[1747774019711,1.2881,2513.0,2512.9,1.11384332]
[1747774021310,3.2078,2513.2,2513.1,0.79551]
[1747774021608,3.2078,2513.5,2513.4,0.79542]
[1747774021911,3.2078,2513.8,2513.3,3.29289]
[1747774022206,42.07884,2514.4,2513.9,0.79526]
[1747774022207,3.2078,2514.4,2513.9,0.79526]
[1747774022415,4.00292,2514.4,2513.9,13.45226]
[1747774022805,4.00291,2514.4,2513.9,17.96436]
[1747774023409,0.0908291,2514.0,2513.9,5.30736]
[1747774023616,0.0908291,2514.0,2513.9,31.38936]
[1747774023805,0.0908291,2514.0,2513.9,32.51972332]
[1747774024118,0.0908291,2514.0,2513.9,5.64246332]
[1747774024409,0.00596433,2514.0,2513.9,15.07382332]
[1747774025121,0.00596433,2514.0,2513.9,13.76952332]
[1747774027206,0.00596433,2514.0,2513.9,23.29422332]
[1747774029216,0.1952794,3321.6,2513.9,22.49896332]
[1747774029217,3.2078,2514.8,2513.9,22.49896332]
[1747774029522,1.5908,2515.2,2514.9,0.79495]
[1747774029711,2.38566,2515.2,2515.0,0.7949]
[1747774029903,0.79489,2515.1,2514.9,13.44992]
[1747774030114,3.57883,2515.2,2514.9,13.44992]
[1747774030311,0.00596433,2515.3,2515.2,0.79485]
[1747774030507,0.00596433,2515.3,2515.2,1.3831]
[1747774030819,0.00596433,2515.3,2515.2,2.17795]
[1747774031326,0.00596433,2515.3,2515.2,2.49621332]
[1747774032008,0.00596433,2515.3,2515.2,3.33601332]
[1747774032624,1.6259,2515.8,2515.7,0.79469]
[1747774032915,18.63281931,2516.6,2515.5,15.8608]
[1747774033122,0.79465,2515.9,2515.6,2.19332]
[1747774033512,1.3195,2515.8,2515.6,2.19332]
[1747774033713,1.3195,2515.8,2515.7,0.79469]
[1747774033910,0.00596433,2516.0,2515.7,1.3335]
[1747774034122,0.00596433,2516.0,2515.8,4.00244]
[1747774034320,4.00223,2516.6,2516.4,0.79447]
[1747774034514,1.3701,2516.7,2516.6,0.79441]
[1747774034713,1.3701,2516.7,2516.5,12.651]
[1747774035215,1.3701,2516.7,2516.6,12.651]
[1747774035216,4.15129,2516.7,2516.6,12.651]
[1747774035519,3.38219506,2516.7,2516.4,0.00596433]
[1747774035710,0.79444,2516.5,2516.4,0.00596433]
[1747774035911,0.79444,2516.5,2516.4,12.65696433]
[1747774036416,0.79444,2516.5,2516.4,12.65396433]
[1747774036720,2.80665006,2516.5,2516.4,0.00596433]
[1747774037120,0.81972506,2516.5,2516.4,0.00596433]
[1747774037423,1.43478506,2516.5,2516.4,0.80043433]
[1747774037612,1.43478506,2516.5,2516.4,2.21083433]
[1747774038220,2.22922506,2516.5,2516.4,1.41636433]
[1747774038422,4.21615006,2516.5,2516.4,12.65396433]
[1747774038718,4.21615006,2516.5,2516.4,0.00596433]
[1747774039019,2.22922506,2516.5,2516.4,12.65396433]
[1747774039316,1.43478506,2516.5,2516.4,13.44843433]
[1747774039514,1.43478506,2516.5,2516.4,12.65396433]
[1747774039515,2.22922506,2516.5,2516.4,12.65396433]
[1747774039715,1.51964983,2516.5,2516.4,12.65396433]
[1747774039917,2.31408983,2516.5,2516.4,12.65396433]
[1747774040131,1.51964983,2516.5,2516.4,12.65396433]
[1747774040425,1.51964983,2516.5,2516.4,13.44843433]
[1747774040722,0.11014983,2516.5,2516.4,16.65623433]
[1747774041025,0.90458983,2516.5,2516.4,3.21376433]
[1747774041217,0.11014983,2516.5,2516.4,12.65196433]
[1747774041417,0.90458983,2516.5,2516.4,12.65196433]
[1747774041923,0.11014983,2516.5,2516.4,0.00596433]
[1747774042119,0.11014983,2516.5,2516.4,12.65096433]
[1747774042320,2.21538983,2516.5,2516.4,12.65096433]
[1747774042618,1.42094983,2516.5,2516.4,12.65096433]
[1747774042922,3.40787483,2516.5,2516.4,12.65096433]
[1747774043122,3.40787483,2516.5,2516.4,15.85876433]
[1747774043919,1.42094983,2516.5,2516.4,15.85876433]
[1747774044114,1.42094983,2516.5,2516.4,16.65323433]
[1747774044115,0.11014983,2516.5,2516.4,16.65323433]
[1747774044618,0.11014983,2516.5,2516.4,4.00823433]
[1747774044823,0.11014983,2516.5,2516.4,16.63323433]
[1747774045323,1.42704983,2516.5,2516.4,16.63323433]
[1747774045523,0.11014983,2516.5,2516.4,16.63323433]
[1747774046215,0.11014983,2516.5,2516.4,21.63323433]
[1747774046417,0.8085,2517.4,2516.4,20.83876433]
[1747774046616,0.8334,2517.8,2517.7,0.79406]
[1747774046822,0.79394,2518.1,2517.7,15.8308]
[1747774047019,0.79403,2517.8,2517.7,15.8308]
[1747774047226,0.79419,2517.3,2517.2,3.2078]
[1747774047422,0.79422,2517.2,2517.1,12.623]
[1747774047631,0.79425,2517.1,2517.0,0.00596433]
[1747774047820,4.0412,2517.4,2517.1,0.79425]
[1747774048018,4.0412,2517.4,2517.0,12.62896433]
[1747774048019,6.027535,2517.4,2517.0,12.62896433]
[1747774048219,39.66657,2520.1,2517.0,12.62896433]
[1747774048220,3.80082756,2519.0,2517.3,3.2078]
[1747774048429,0.59302756,2519.0,2518.6,0.79377]
[1747774048617,0.59302756,2519.0,2518.7,3.2078]
[1747774048618,2.57809756,2519.0,2518.7,3.2078]
[1747774048824,18.37809756,2519.0,2518.7,3.2078]
[1747774049229,0.79371,2518.8,2518.7,3.2078]
[1747774049427,2.57809756,2519.0,2518.7,3.2078]
[1747774049730,0.79369,2518.9,2518.7,4.00153]
[1747774050033,2.11571,2518.8,2518.7,3.2078]
[1747774050425,4.10082,2518.8,2518.7,3.2078]
[1747774051032,9.10082,2518.8,2518.7,3.2078]
[1747774051918,0.79378,2518.6,2518.5,0.00596433]
[1747774052118,0.79378,2518.6,2517.8,3.2078]
[1747774052119,1.98446,2518.6,2517.9,12.619]
[1747774052326,0.79392,2518.2,2518.0,0.79395]
[1747774052524,4.0427,2518.5,2517.8,3.2078]
[1747774052724,4.0427,2518.5,2517.5,3.2078]
[1747774052725,0.79404,2517.8,2517.5,3.2078]
[1747774053025,0.79405,2517.8,2517.5,3.2078]
[1747774053329,2.78003,2517.8,2517.6,0.79407]
[1747774053539,0.79406,2517.7,2517.5,4.0019]
[1747774054130,0.79412,2517.5,2517.4,0.00596433]
[1747774054630,0.79425,2517.1,2517.0,0.31762654]
[1747774054929,0.7942,2517.3,2517.1,0.79425]
[1747774055229,1.98613501,2517.5,2516.9,3.97206969]
[1747774055230,1.3244,2517.4,2516.9,3.97206969]
[1747774055428,4.104945,2517.4,2517.2,0.79421]
[1747774055731,0.79419,2517.3,2517.1,3.2078]
[1747774055923,1.3694,2517.2,2517.1,4.00204]
[1747774056323,3.355775,2517.2,2517.1,4.00204]
[1747774056930,4.149995,2517.2,2517.1,3.2078]
[1747774057127,1.98522,2517.7,2517.1,3.2078]
[1747774057433,3.96973975,2519.8,2518.9,5.95689469]
[1747774057631,1.3694,2519.7,2519.2,3.97271469]
[1747774057822,1.3694,2519.7,2519.1,3.2078]
[1747774057823,2.16283,2519.7,2519.6,3.2078]
[1747774058132,4.14745,2519.7,2519.6,3.2078]
[1747774058323,9.14745,2519.7,2519.6,3.2078]
[1747774059734,8.354,2519.7,2519.6,3.2078]
[1747774060032,9.14743,2519.7,2519.6,3.2078]
[1747774060332,8.354,2519.7,2519.6,3.2078]
[1747774060835,3.354,2519.7,2519.6,3.2078]
[1747774062038,0.00596433,2519.9,2519.6,7.18051469]
[1747774062338,0.00596433,2519.9,2519.7,0.79342]
[1747774062537,2.08643433,2519.9,2519.7,0.79342]
[1747774062835,4.07071933,2519.9,2519.7,0.79342]
[1747774063031,0.79341,2519.8,2519.6,4.00125]
[1747774063236,1.29306433,2519.9,2519.6,7.18051469]
[1747774063541,0.79341,2519.8,2519.6,7.97395469]
[1747774063834,0.79335,2520.0,2519.8,4.76608469]
[1747774064035,0.79334,2520.0,2519.9,3.2078]
[1747774064426,0.79,2520.9,2520.0,1.98335]
[1747774064627,0.79308,2520.8,2520.7,3.2078]
[1747774064830,0.79321,2520.4,2520.3,8.05535469]
[1747774065131,0.79321,2520.4,2520.3,3.2078]
[1747774065335,0.79319,2520.5,2520.3,4.00103]
[1747774065535,0.79321,2520.4,2520.3,3.2078]
[1747774066039,0.79321,2520.4,2520.3,4.00104]
[1747774066240,25.7,2520.8,2520.3,3.2078]
[1747774066541,0.79321,2520.4,2520.3,3.2078]
[1747774066936,0.79333,2520.1,2520.0,4.00114]
[1747774067331,2.77742001,2520.1,2520.0,3.2078]
[1747774068227,2.77739001,2520.1,2520.0,3.2078]
[1747774069336,1.98284,2520.7,2520.0,3.2078]
[1747774069337,3.9877,2521.1,2520.0,8.05535469]
[1747774069543,0.79318,2520.5,2520.4,4.00099]
[1747774069742,0.79317,2520.6,2520.4,8.05535469]
[1747774070034,0.79315,2520.6,2520.5,1.3408]
[1747774070430,0.793,2521.1,2520.6,1.98288]
[1747774070743,1.98209,2521.6,2521.0,4.84755469]
[1747774070941,0.79299,2521.1,2521.0,0.00595226]
[1747774071239,0.79299,2521.1,2520.3,1.98306]
[1747774071240,0.79324,2520.3,2520.2,0.3612282]
[1747774071432,0.7933,2520.1,2520.0,0.55121467]
[1747774071633,3.2078,2520.3,2520.0,5.39876936]
[1747774071834,3.2078,2521.2,2520.3,4.84755469]
[1747774072039,0.08486477,2520.4,2520.3,4.84755469]
[1747774072240,0.87807477,2520.4,2520.3,3.2078]
[1747774072443,0.87807477,2520.4,2520.3,8.05535469]
[1747774072741,0.08486477,2520.4,2520.3,8.84859469]
[1747774074631,0.08486477,2520.4,2520.3,9.16591932]
[1747774074936,0.08486477,2520.4,2520.3,22.09667932]
[1747774075139,0.08486477,2520.4,2520.3,22.88991932]
[1747774075544,0.08486477,2520.4,2520.3,9.16591932]
[1747774075740,0.87807477,2520.4,2520.3,8.37267932]
[1747774076034,2.86192477,2520.4,2520.3,3.52512463]
[1747774076241,5.87807477,2520.4,2520.3,0.31732463]
[1747774076431,0.08486477,2520.4,2520.3,5.16487932]
[1747774076835,0.87807477,2520.4,2520.3,0.31732463]
[1747774077141,5.87807477,2520.4,2520.3,5.16487932]
[1747774077336,0.79327,2520.2,2520.1,0.00595226]
[1747774077736,0.79327,2520.2,2520.1,4.85350695]
[1747774078035,0.79327,2520.2,2520.1,0.00595226]
[1747774078537,0.87807477,2520.4,2520.2,0.79326]
[1747774078835,0.08486477,2520.4,2520.2,19.36180469]
[1747774079043,0.08486477,2520.4,2520.3,0.79324]
[1747774079228,0.08486477,2520.4,2520.3,5.64079469]
[1747774079836,0.00591203,2520.6,2520.5,0.79318]
[1747774080139,0.00591203,2520.6,2520.5,8.84853469]
[1747774080539,0.79906203,2520.6,2520.5,8.05535469]
[1747774080740,0.00591203,2520.6,2520.3,0.31731912]
[1747774080942,5.79906203,2520.6,2520.5,0.31731912]
[1747774081141,0.79906203,2520.6,2520.5,4.84756381]
[1747774081438,3.96488,2521.2,2520.5,4.84756381]
[1747774081439,0.79299,2521.1,2520.5,16.51910381]
[1747774081631,3.2078,2520.9,2520.5,13.72]
[1747774081830,3.2078,2520.9,2520.3,13.72]
[1747774082036,3.2078,2520.9,2520.1,0.00595226]
[1747774082037,1.98239,2521.3,2520.8,2.79910381]
[1747774082235,1.98239,2521.3,2520.1,0.00595226]
[1747774082236,0.7904,2520.8,2520.1,0.00595226]
[1747774082433,3.2078,2520.7,2520.2,2.79910381]
[1747774082642,4.00093,2520.7,2520.1,3.59834607]
[1747774082840,0.79317,2520.6,2520.1,0.00595226]
[1747774083040,3.2078,2520.7,2520.6,2.79910381]
[1747774083245,1.57907,2520.6,2520.1,0.00595226]
[1747774083547,2.1137,2520.6,2520.1,0.00595226]
[1747774083739,3.2078,2520.4,2520.1,0.00595226]
[1747774083938,1.3278,2520.3,2520.1,0.00595226]
[1747774084339,6.3278,2520.3,2520.2,2.79910381]
[1747774084748,0.79327,2520.2,2520.1,0.00595226]
[1747774085048,2.12107,2520.2,2520.1,0.00595226]
[1747774085236,32.82107,2520.2,2520.1,2.80505607]
[1747774085436,32.82107,2520.2,2520.1,0.00595226]
[1747774085738,32.82107,2520.2,2520.1,2.80505607]
[1747774085939,32.82107,2520.2,2520.1,0.00595226]
[1747774086237,32.0278,2520.2,2519.4,0.26990725]
[1747774086543,3.2078,2520.0,2519.4,0.26990725]
[1747774086846,3.2078,2519.7,2519.4,0.26990725]
[1747774087043,3.2078,2519.7,2519.6,0.79346]
[1747774087345,1.984405,2519.7,2519.6,0.79346]
[1747774087647,1.984405,2519.7,2519.6,4.00126]
[1747774088041,1.984405,2519.7,2519.6,3.2078]
[1747774088246,1.984405,2519.7,2519.6,0.79346]
[1747774090141,2.777835,2519.7,2519.6,0.79346]
[1747774090341,1.984405,2519.7,2519.6,0.79346]
[1747774090540,2.777855,2519.7,2519.5,1.3108]
[1747774090843,1.984405,2519.7,2519.5,1.3108]
[1747774091061,1.984365,2519.9,2519.6,3.2078]
[1747774091243,0.7934,2519.8,2519.6,3.2078]
[1747774091445,0.7934,2519.8,2519.7,1.3666]
[1747774091644,2.777765,2519.8,2519.7,1.3666]
[1747774091941,4.101165,2519.8,2519.7,1.3666]
[1747774092138,11.515565,2519.8,2519.4,0.27585951]
[1747774092338,6.515565,2519.8,2519.4,0.00595226]
[1747774092548,0.7935,2519.5,2519.4,1.41445226]
[1747774092950,2.77806,2519.5,2519.4,1.41445226]
[1747774093442,2.77806,2519.5,2519.4,1.73194967]
[1747774093641,2.77806,2519.5,2519.4,0.32344967]
[1747774094047,3.48986,2519.5,2519.4,0.32344967]
[1747774094348,4.81326,2519.5,2519.4,0.32344967]
[1747774094846,4.01976,2519.5,2519.4,0.00595226]
[1747774095055,4.81326,2519.5,2519.4,0.00595226]
[1747774095548,1.98456,2519.5,2519.4,0.00595226]
[1747774095748,2.77806,2519.5,2519.4,0.00595226]
[1747774095951,2.77806,2519.5,2519.4,1.32135226]
[1747774096248,1.98456,2519.5,2519.4,1.32135226]
[1747774096549,2.77806,2519.5,2519.4,1.32135226]
[1747774097650,3.2078,2519.9,2519.4,1.32135226]
[1747774097938,1.98252,2521.1,2519.8,5.19128]
[1747774098144,0.79315,2520.6,2520.5,3.2078]
[1747774098646,2.77684501,2520.6,2520.5,3.2078]
[1747774099044,1.98369501,2520.6,2520.5,3.2078]
[1747774099247,2.77684501,2520.6,2520.5,3.2078]
[1747774101745,1.98369501,2520.6,2520.5,3.2078]
[1747774101946,1.98369501,2520.6,2520.5,4.00098]
[1747774102145,1.98369501,2520.6,2520.5,3.2078]
[1747774102657,2.77684501,2520.6,2520.5,3.2078]
[1747774102959,4.17024501,2520.6,2520.5,3.2078]
[1747774103153,1.98301,2520.5,2520.2,3.2078]
[1747774103354,0.79324,2520.3,2520.2,3.2078]
[1747774103748,2.77717001,2520.3,2520.2,3.2078]
[1747774104949,0.79334,2520.0,2519.9,4.4841]
[1747774105160,0.79334,2520.0,2519.9,3.2078]
[1747774105458,2.77750501,2520.0,2519.9,3.2078]
[1747774105648,0.79337,2519.9,2519.8,1.549433]
[1747774105848,2.17547,2519.9,2519.8,1.2763]
[1747774106054,4.159715,2519.9,2519.8,1.2763]
[1747774106752,0.79343,2519.7,2519.6,3.2078]
[1747774107257,2.777835,2519.7,2519.6,3.2078]
[1747774107456,0.79346,2519.6,2519.5,1.4157]
[1747774107666,0.79349,2519.5,2519.4,0.00595226]
[1747774108155,2.77805,2519.5,2519.4,0.00595226]
[1747774108454,4.10335,2519.5,2519.4,0.00595226]
[1747774109042,9.10335,2519.5,2519.4,0.00595226]
[1747774109243,0.79362,2519.1,2519.0,1.4157]
[1747774109653,2.778495,2519.1,2519.0,1.4157]
[1747774109957,0.79366,2519.0,2518.9,3.2078]
[1747774110253,0.79363,2519.1,2518.9,6.21875032]
[1747774110556,0.79363,2519.1,2519.0,1.3821]
[1747774110756,2.77854501,2519.1,2519.0,1.3821]
[1747774110951,2.77854501,2519.1,2519.0,1.61445532]
[1747774111560,0.00595226,2519.2,2519.0,1.61445532]
[1747774111858,0.00919459,2519.5,2519.0,1.61445532]
[1747774111859,0.00919459,2519.5,2519.0,8.59929032]
[1747774112052,0.7935,2519.5,2519.4,3.2078]
[1747774112252,0.7935,2519.5,2519.4,3.43096073]
[1747774112453,2.77806,2519.5,2519.4,3.2078]
[1747774113259,1.98456,2519.5,2519.4,3.2078]
[1747774113561,0.79334,2520.0,2519.4,10.41552073]
[1747774113761,0.79334,2520.0,2519.8,3.2078]
[1747774113958,0.79334,2520.0,2519.9,1.2858]
[1747774114157,1.984205,2520.0,2519.9,1.2858]
[1747774114362,0.79326,2520.3,2519.9,5.74548573]
[1747774114562,0.79326,2520.3,2520.2,3.2078]
[1747774114949,2.77719001,2520.3,2520.2,3.2078]
[1747774115959,1.98393001,2520.3,2520.2,3.2078]
[1747774116158,0.79323,2520.4,2520.2,3.43096073]
[1747774116359,0.79323,2520.4,2520.3,1.4124]
[1747774116560,2.77712,2520.4,2520.3,1.4124]
[1747774117062,2.7771,2520.4,2520.3,1.4124]
[1747774117263,1.98389,2520.4,2520.3,1.63556073]
[1747774117564,0.79321,2520.4,2520.3,1.63556073]
[1747774117758,2.77706,2520.4,2520.3,1.63556073]
[1747774117959,0.79321,2520.4,2520.3,1.63556073]
[1747774118158,0.7932,2520.5,2520.3,1.63556073]
[1747774118462,0.79319,2520.5,2520.3,1.63556073]
[1747774118662,1.98381,2520.5,2520.3,1.4124]
[1747774118864,0.79321,2520.4,2520.3,1.4124]
[1747774119158,0.79325,2520.3,2520.2,3.2078]
[1747774119463,0.79337,2519.9,2519.8,3.21375226]
[1747774120063,1.98352,2519.8,2519.2,0.73431706]
[1747774120259,0.79353,2519.4,2519.3,1.3384]
[1747774120662,1.98354,2519.8,2519.3,4.76936073]
[1747774120961,1.98354,2519.8,2519.3,4.77531299]
[1747774120962,0.79353,2519.4,2519.3,4.77531299]
[1747774121164,0.79353,2519.4,2519.3,4.55215226]
[1747774121366,2.77817,2519.4,2519.3,4.55215226]
[1747774121555,2.77817,2519.4,2519.0,0.7524]
[1747774121556,1.98392,2519.3,2518.7,3.9094]
[1747774121752,4.5963,2519.3,2518.8,1.3384]
[1747774121962,6.581175,2519.3,2518.8,1.3384]
[1747774122163,0.79361,2519.2,2518.8,2.35526073]
[1747774122461,0.79369,2518.9,2518.8,1.56156073]
[1747774122859,2.12994,2519.1,2518.8,1.56156073]
[1747774123062,1.98391,2519.3,2518.8,1.56156073]
[1747774123366,1.984875,2519.3,2518.8,1.56156073]
[1747774123560,0.79362,2519.1,2519.0,3.2078]
[1747774123866,13.907,2519.5,2519.0,4.00144]
[1747774124064,0.79353,2519.4,2519.1,0.79362]
[1747774124260,22.41936,2519.7,2519.1,1.3089]
[1747774124466,0.79358,2519.3,2519.1,1.53206073]
[1747774124662,0.79352,2519.5,2519.1,2.32566073]
[1747774124868,0.79352,2519.5,2519.3,3.2078]
[1747774125166,0.79352,2519.5,2519.4,1.3089]
[1747774125367,2.77812,2519.5,2519.4,1.3089]
[1747774126665,1.9846,2519.5,2518.9,0.31748206]
[1747774126862,1.98397,2519.3,2519.0,1.4118]
[1747774127062,0.79362,2519.1,2519.0,1.4118]
[1747774127469,2.778495,2519.1,2519.0,1.4118]
[1747774129071,1.984875,2519.1,2519.0,2.20546]
[1747774129266,1.4095,2519.5,2519.0,1.63496073]
[1747774129467,15.3175,2519.5,2519.0,2.42860073]
[1747774129675,0.79362,2519.1,2519.0,1.63496073]
[1747774129865,0.79362,2519.2,2519.0,1.63496073]
[1747774130374,2.778455,2519.2,2519.0,1.63496073]
[1747774130570,1.984835,2519.2,2519.1,3.2078]
[1747774130877,2.778425,2519.2,2519.1,3.2078]
[1747774131874,2.778385,2519.2,2519.1,3.2078]
[1747774132672,1.984795,2519.2,2519.1,3.2078]
[1747774133264,2.778385,2519.2,2519.1,3.2078]
[1747774133875,1.984795,2519.2,2519.1,3.2078]
[1747774134473,0.79362,2519.1,2519.0,1.4118]
[1747774134964,2.778495,2519.1,2519.0,1.4118]
[1747774135273,0.79368,2519.0,2518.8,3.2078]
[1747774135460,0.79368,2519.0,2518.9,1.399]
[1747774135865,2.778635,2519.0,2518.9,1.399]
[1747774136168,0.79369,2518.9,2518.8,3.2078]
[1747774136367,0.79369,2518.9,2518.8,4.6068]
[1747774136574,2.778725,2518.9,2518.8,4.6068]
[1747774138468,2.778725,2518.9,2518.8,1.399]
[1747774141171,0.79367,2519.0,2518.8,3.60719572]
[1747774141375,0.6947,2519.3,2518.8,4.82996073]
[1747774141577,0.79356,2519.3,2519.2,3.2078]
[1747774142077,2.77828,2519.3,2519.2,3.2078]
[1747774143282,4.00128,2519.6,2519.4,0.7935]
[1747774143484,0.79348,2519.6,2519.5,1.3438]
[1747774143776,43.96743,2520.2,2519.5,1.3438]
[1747774143777,3.2078,2520.3,2519.6,1.98367]
[1747774143970,1.2938,2520.4,2519.8,3.2078]
[1747774144176,0.79329,2520.2,2519.9,2.13716]
[1747774144683,0.79928226,2520.1,2519.9,3.55108573]
[1747774144881,0.00595226,2520.1,2519.9,3.55108573]
[1747774145081,0.79926226,2520.1,2519.9,3.55108573]
[1747774145281,0.79926226,2520.1,2519.9,2.36032073]
[1747774146488,0.00595226,2520.1,2520.0,0.79334]